[Event "Live Chess"]
[Site "Chess.com"]
[Date "2023.05.21"]
[Round "-"]
[White "Singapourfeuj"]
[Black "LutherSullivan"]
[Result "0-1"]
[WhiteElo "2158"]
[BlackElo "2145"]
[TimeControl "300"]
[EndTime "18:15:20 PDT"]
[Termination "LutherSullivan won by checkmate"]

1. d4 {[%clk 0:04:58.5]} 1... d5 {[%clk 0:04:56.4]} 2. c4 {[%clk 0:04:57.2]}
2... e6 {[%clk 0:04:55.2]} 3. Nf3 {[%clk 0:04:56.1]} 3... Nf6 {[%clk 0:04:54.7]}
4. Nc3 {[%clk 0:04:55.1]} 4... Be7 {[%clk 0:04:54]} 5. Bg5 {[%clk 0:04:54.2]}
5... O-O {[%clk 0:04:52.8]} 6. cxd5 {[%clk 0:04:53.6]} 6... Nxd5 {[%clk
0:04:46.6]} 7. Bxe7 {[%clk 0:04:52.6]} 7... Qxe7 {[%clk 0:04:44.9]} 8. e4 {[%clk
0:04:51.6]} 8... Nxc3 {[%clk 0:04:42.1]} 9. bxc3 {[%clk 0:04:50.9]} 9... c5
{[%clk 0:04:41.5]} 10. Bd3 {[%clk 0:04:50]} 10... Nc6 {[%clk 0:04:36.9]} 11. O-O
{[%clk 0:04:48.6]} 11... Rd8 {[%clk 0:04:33.8]} 12. d5 {[%clk 0:04:45.5]} 12...
exd5 {[%clk 0:04:28.6]} 13. exd5 {[%clk 0:04:44.7]} 13... Na5 {[%clk 0:04:19.6]}
14. Re1 {[%clk 0:04:42.8]} 14... Qf6 {[%clk 0:04:16.3]} 15. c4 {[%clk
0:04:40.5]} 15... Bg4 {[%clk 0:04:08]} 16. Re3 {[%clk 0:04:39]} 16... Re8 {[%clk
0:04:02.2]} 17. Rb1 {[%clk 0:04:35.6]} 17... b6 {[%clk 0:03:59.1]} 18. h3 {[%clk
0:04:30]} 18... Bxf3 {[%clk 0:03:46.5]} 19. Qxf3 {[%clk 0:04:27.6]} 19... Qxf3
{[%clk 0:03:40.9]} 20. Rxf3 {[%clk 0:04:26.2]} 20... Nb7 {[%clk 0:03:38.1]} 21.
g3 {[%clk 0:04:22.9]} 21... Nd6 {[%clk 0:03:35.9]} 22. Re3 {[%clk 0:04:21.8]}
22... Rxe3 {[%clk 0:03:32.6]} 23. fxe3 {[%clk 0:04:20.9]} 23... f5 {[%clk
0:03:31.3]} 24. Rf1 {[%clk 0:04:17.4]} 24... g6 {[%clk 0:03:25.2]} 25. g4 {[%clk
0:04:16.7]} 25... Re8 {[%clk 0:03:04.4]} 26. gxf5 {[%clk 0:04:14.9]} 26... Rxe3
{[%clk 0:03:03.2]} 27. Bb1 {[%clk 0:04:02.9]} 27... gxf5 {[%clk 0:02:53.6]} 28.
Bxf5 {[%clk 0:04:01.6]} 28... Nxf5 {[%clk 0:01:52.3]} 29. Rxf5 {[%clk
0:04:00.1]} 29... Rxh3 {[%clk 0:01:51.7]} 30. Kf2 {[%clk 0:03:57.4]} 30... Rc3
{[%clk 0:01:45.8]} 31. d6 {[%clk 0:03:54.2]} 31... Rd3 {[%clk 0:01:42.2]} 32.
Rf6 {[%clk 0:03:53.2]} 32... Kg7 {[%clk 0:01:40.2]} 33. Re6 {[%clk 0:03:52.1]}
33... Kf7 {[%clk 0:01:38.5]} 34. Re7+ {[%clk 0:03:51.2]} 34... Kf6 {[%clk
0:01:35.1]} 35. Rxh7 {[%clk 0:03:49.2]} 35... Rxd6 {[%clk 0:01:30.1]} 36. Rxa7
{[%clk 0:03:47.2]} 36... Ke5 {[%clk 0:01:22.9]} 37. Ke3 {[%clk 0:03:46.3]} 37...
Rh6 {[%clk 0:01:19]} 38. Rb7 {[%clk 0:03:43]} 38... Rh3+ {[%clk 0:01:13.3]} 39.
Kd2 {[%clk 0:03:41.7]} 39... Kd4 {[%clk 0:01:10.8]} 40. Rxb6 {[%clk 0:03:31.8]}
40... Rh2+ {[%clk 0:01:09]} 41. Kc1 {[%clk 0:03:30.7]} 41... Rxa2 {[%clk
0:01:06.9]} 42. Rh6 {[%clk 0:03:28.7]} 42... Re2 {[%clk 0:00:56.5]} 43. Rh4+
{[%clk 0:03:27]} 43... Kd3 {[%clk 0:00:54.7]} 44. Rh5 {[%clk 0:03:19]} 44...
Rc2+ {[%clk 0:00:32.3]} 45. Kb1 {[%clk 0:03:16.9]} 45... Rxc4 {[%clk 0:00:31]}
46. Rh3+ {[%clk 0:03:15.7]} 46... Kd4 {[%clk 0:00:30.3]} 47. Rh4+ {[%clk
0:03:14.1]} 47... Kc3 {[%clk 0:00:29.9]} 48. Rh3+ {[%clk 0:03:11.8]} 48... Kb4
{[%clk 0:00:28.5]} 49. Kb2 {[%clk 0:03:11.2]} 49... Rg4 {[%clk 0:00:27.3]} 50.
Rf3 {[%clk 0:03:09.9]} 50... Rg2+ {[%clk 0:00:25.7]} 51. Kb1 {[%clk 0:03:08.5]}
51... c4 {[%clk 0:00:25]} 52. Rf8 {[%clk 0:03:07]} 52... Kb3 {[%clk 0:00:22.7]}
53. Rb8+ {[%clk 0:03:03.1]} 53... Kc3 {[%clk 0:00:21.2]} 54. Rb7 {[%clk
0:03:00.8]} 54... Rg1+ {[%clk 0:00:20.1]} 55. Ka2 {[%clk 0:02:59.7]} 55... Kd2
{[%clk 0:00:17.3]} 56. Rd7+ {[%clk 0:02:58.3]} 56... Kc2 {[%clk 0:00:13.3]} 57.
Rc7 {[%clk 0:02:57.1]} 57... c3 {[%clk 0:00:11.8]} 58. Ka3 {[%clk 0:02:54.8]}
58... Rg4 {[%clk 0:00:10.7]} 59. Rd7 {[%clk 0:02:53]} 59... Rc4 {[%clk
0:00:08.3]} 60. Ka2 {[%clk 0:02:50.6]} 60... Ra4# {[%clk 0:00:07.2]} 0-1

[Event "Live Chess"]
[Site "Chess.com"]
[Date "2023.05.21"]
[Round "-"]
[White "GEMdzq"]
[Black "manthanit"]
[Result "1-0"]
[WhiteElo "2269"]
[BlackElo "1055"]
[TimeControl "300"]
[EndTime "18:15:32 PDT"]
[Termination "GEMdzq won on time"]

1. e4 {[%clk 0:04:56.1]} 1... e6 {[%clk 0:04:58.3]} 2. d4 {[%clk 0:04:55]} 2...
g6 {[%clk 0:04:56.3]} 3. Nc3 {[%clk 0:04:54.2]} 3... Bg7 {[%clk 0:04:55.9]} 4.
Nf3 {[%clk 0:04:52.9]} 4... c6 {[%clk 0:04:51.9]} 5. Be2 {[%clk 0:04:47.5]} 5...
d6 {[%clk 0:04:50.9]} 6. O-O {[%clk 0:04:45.8]} 6... Nd7 {[%clk 0:04:48.7]} 7.
Bf4 {[%clk 0:04:43.2]} 7... Ne7 {[%clk 0:04:45.1]} 8. Bxd6 {[%clk 0:04:41.5]}
8... O-O {[%clk 0:04:41]} 9. a4 {[%clk 0:04:32.7]} 9... a6 {[%clk 0:04:33.6]}
10. a5 {[%clk 0:04:29.1]} 10... b5 {[%clk 0:04:30.4]} 11. axb6 {[%clk
0:04:26.3]} 11... Bb7 {[%clk 0:04:19.5]} 12. Bc7 {[%clk 0:04:19.3]} 12... Qc8
{[%clk 0:04:15.5]} 13. Na4 {[%clk 0:04:16.7]} 13... c5 {[%clk 0:04:10.6]} 14.
dxc5 {[%clk 0:04:12.4]} 14... Bxe4 {[%clk 0:04:06.5]} 15. Nd2 {[%clk 0:04:05.7]}
15... Bc6 {[%clk 0:03:40.3]} 16. Bd6 {[%clk 0:03:55]} 16... Re8 {[%clk
0:03:34.4]} 17. Nc4 {[%clk 0:03:54]} 17... Bxa4 {[%clk 0:03:27.9]} 18. Rxa4
{[%clk 0:03:51]} 18... Nxc5 {[%clk 0:03:27.2]} 19. Ra2 {[%clk 0:03:20.6]} 19...
Nd5 {[%clk 0:03:14.9]} 20. Bf3 {[%clk 0:03:15]} 20... Qc6 {[%clk 0:02:39.8]} 21.
Bc7 {[%clk 0:02:56.1]} 21... Qd7 {[%clk 0:02:16.3]} 22. Nd6 {[%clk 0:02:40.1]}
22... Re7 {[%clk 0:02:02.1]} 23. Bxd5 {[%clk 0:02:35.4]} 23... exd5 {[%clk
0:01:56.6]} 24. Qxd5 {[%clk 0:02:35.3]} 24... Re5 {[%clk 0:01:51.9]} 25. Qxa8+
{[%clk 0:02:34.1]} 25... Bf8 {[%clk 0:01:49.9]} 26. b7 {[%clk 0:02:19.6]} 26...
Nxb7 {[%clk 0:01:37.1]} 27. Qxb7 {[%clk 0:02:17.4]} 27... Bxd6 {[%clk
0:01:33.8]} 28. Bxd6 {[%clk 0:02:12.8]} 28... Qxb7 {[%clk 0:01:27.8]} 29. Bxe5
{[%clk 0:02:10.6]} 29... Qd5 {[%clk 0:01:22.8]} 30. Rxa6 {[%clk 0:01:57.8]}
30... Qxe5 {[%clk 0:01:20.8]} 31. c3 {[%clk 0:01:50.5]} 31... Qe2 {[%clk
0:01:17.4]} 32. Rb6 {[%clk 0:01:49.2]} 32... Kg7 {[%clk 0:01:14.4]} 33. Rb4
{[%clk 0:01:46.1]} 33... h5 {[%clk 0:01:13.1]} 34. g3 {[%clk 0:01:44.8]} 34...
g5 {[%clk 0:01:02.1]} 35. h3 {[%clk 0:01:40.4]} 35... f6 {[%clk 0:01:01.2]} 36.
Kg2 {[%clk 0:01:35.9]} 36... Kg6 {[%clk 0:00:59.4]} 37. Ra1 {[%clk 0:01:33]}
37... h4 {[%clk 0:00:47.9]} 38. gxh4 {[%clk 0:01:29.3]} 38... gxh4 {[%clk
0:00:46.8]} 39. Ra5 {[%clk 0:01:06.1]} 39... Qe6 {[%clk 0:00:14.3]} 40. Rxh4
{[%clk 0:00:43.1]} 40... Qc6+ {[%clk 0:00:11.8]} 41. f3 {[%clk 0:00:42.1]} 41...
Qd6 {[%clk 0:00:06.7]} 42. Rd4 {[%clk 0:00:38.5]} 42... Qe6 {[%clk 0:00:04.8]}
43. Rd2 {[%clk 0:00:32.3]} 1-0

[Event "Live Chess"]
[Site "Chess.com"]
[Date "2023.05.21"]
[Round "-"]
[White "IgorSchukin"]
[Black "jimwad"]
[Result "1-0"]
[WhiteElo "1768"]
[BlackElo "1249"]
[TimeControl "300"]
[EndTime "18:15:43 PDT"]
[Termination "IgorSchukin won by resignation"]

1. e4 {[%clk 0:04:58.8]} 1... e5 {[%clk 0:04:57.6]} 2. f4 {[%clk 0:04:56.3]}
2... exf4 {[%clk 0:04:56.1]} 3. Nf3 {[%clk 0:04:55.6]} 3... g5 {[%clk
0:04:54.2]} 4. Bc4 {[%clk 0:04:54.1]} 4... Nf6 {[%clk 0:04:51.8]} 5. Nxg5 {[%clk
0:04:48.8]} 5... Bh6 {[%clk 0:04:44.8]} 6. Nxf7 {[%clk 0:04:40.6]} 6... Qe7
{[%clk 0:04:43.9]} 7. Nxh8 {[%clk 0:04:31.5]} 7... Qxe4+ {[%clk 0:04:42.7]} 8.
Qe2 {[%clk 0:04:30.3]} 8... Qxe2+ {[%clk 0:04:41.3]} 9. Bxe2 {[%clk 0:04:27.3]}
9... d5 {[%clk 0:04:39.8]} 10. d4 {[%clk 0:04:23.2]} 10... Ne4 {[%clk
0:04:38.3]} 11. Bh5+ {[%clk 0:04:18.8]} 11... Kd7 {[%clk 0:04:34.6]} 12. Nf7
{[%clk 0:04:13.9]} 12... Bg7 {[%clk 0:04:26.7]} 13. c3 {[%clk 0:04:07.6]} 13...
c5 {[%clk 0:04:23.3]} 14. Bxf4 {[%clk 0:04:05.3]} 14... cxd4 {[%clk 0:04:20.1]}
15. Be5 {[%clk 0:04:01.2]} 15... Bxe5 {[%clk 0:04:17.8]} 16. Nxe5+ {[%clk
0:03:59.5]} 16... Ke6 {[%clk 0:04:17.3]} 17. cxd4 {[%clk 0:03:58.3]} 17... Nc6
{[%clk 0:04:15.7]} 18. Nxc6 {[%clk 0:03:56.6]} 18... bxc6 {[%clk 0:04:14.5]} 19.
O-O {[%clk 0:03:55.6]} 19... Ba6 {[%clk 0:04:12.3]} 20. Re1 {[%clk 0:03:49.3]}
20... Kd6 {[%clk 0:04:09.9]} 21. Nc3 {[%clk 0:03:45.7]} 21... Nxc3 {[%clk
0:04:08.3]} 22. bxc3 {[%clk 0:03:43.9]} 22... Rf8 {[%clk 0:04:00.8]} 23. Re5
{[%clk 0:03:34.9]} 1-0

[Event "Live Chess"]
[Site "Chess.com"]
[Date "2023.05.21"]
[Round "-"]
[White "alanmike75"]
[Black "therealab0ne"]
[Result "1-0"]
[WhiteElo "1575"]
[BlackElo "717"]
[TimeControl "300"]
[EndTime "18:16:05 PDT"]
[Termination "alanmike75 won on time"]

1. e4 {[%clk 0:04:57.6]} 1... c5 {[%clk 0:04:58.6]} 2. Nf3 {[%clk 0:04:55.7]}
2... Nc6 {[%clk 0:04:58]} 3. c3 {[%clk 0:04:54]} 3... d6 {[%clk 0:04:47.4]} 4.
d4 {[%clk 0:04:52.2]} 4... cxd4 {[%clk 0:04:46]} 5. cxd4 {[%clk 0:04:51.2]} 5...
e5 {[%clk 0:04:30]} 6. dxe5 {[%clk 0:04:48.6]} 6... dxe5 {[%clk 0:04:28.2]} 7.
Qxd8+ {[%clk 0:04:46.8]} 7... Kxd8 {[%clk 0:04:25.1]} 8. Nc3 {[%clk 0:04:42.7]}
8... Bb4 {[%clk 0:04:16.3]} 9. Bd2 {[%clk 0:04:36.5]} 9... Nd4 {[%clk
0:04:09.6]} 10. Nxd4 {[%clk 0:04:22.6]} 10... exd4 {[%clk 0:04:08.4]} 11. Nd5
{[%clk 0:04:21.4]} 11... Bxd2+ {[%clk 0:04:00.9]} 12. Kxd2 {[%clk 0:04:20.3]}
12... Ne7 {[%clk 0:03:50.9]} 13. Nf4 {[%clk 0:04:01.9]} 13... Nc6 {[%clk
0:03:47.9]} 14. Bb5 {[%clk 0:03:56.2]} 14... Re8 {[%clk 0:03:37.6]} 15. f3
{[%clk 0:03:54.3]} 15... Kc7 {[%clk 0:03:22.1]} 16. Rac1 {[%clk 0:03:51.7]}
16... Bd7 {[%clk 0:03:18.3]} 17. Nd5+ {[%clk 0:03:47.1]} 17... Kd6 {[%clk
0:03:07.4]} 18. a3 {[%clk 0:03:44]} 18... a6 {[%clk 0:02:47.5]} 19. Bd3 {[%clk
0:03:40.5]} 19... Rac8 {[%clk 0:02:41.5]} 20. Nb6 {[%clk 0:03:28.8]} 20... Rc7
{[%clk 0:02:12.7]} 21. f4 {[%clk 0:03:16.7]} 21... Ke7 {[%clk 0:01:55.8]} 22.
Nd5+ {[%clk 0:03:09.8]} 22... Kd8 {[%clk 0:01:45.9]} 23. Nxc7 {[%clk 0:03:07.4]}
23... Kxc7 {[%clk 0:01:45.4]} 24. Rhe1 {[%clk 0:03:01.7]} 24... Kd8 {[%clk
0:01:39.4]} 25. b4 {[%clk 0:02:58.4]} 25... Ke7 {[%clk 0:01:38.4]} 26. g3 {[%clk
0:02:45.9]} 26... Kf8 {[%clk 0:01:37.5]} 27. e5 {[%clk 0:02:35.7]} 27... a5
{[%clk 0:01:11.5]} 28. b5 {[%clk 0:02:30.4]} 28... Ne7 {[%clk 0:01:05.8]} 29. a4
{[%clk 0:02:28.1]} 29... Bf5 {[%clk 0:01:03.6]} 30. Rc5 {[%clk 0:02:19.8]} 30...
Bxd3 {[%clk 0:00:53.4]} 31. Kxd3 {[%clk 0:02:17.6]} 31... g6 {[%clk 0:00:49.6]}
32. Kxd4 {[%clk 0:02:12.9]} 32... Nf5+ {[%clk 0:00:45.7]} 33. Kc3 {[%clk
0:02:09.2]} 33... Rd8 {[%clk 0:00:30.9]} 34. Rc4 {[%clk 0:01:46.7]} 1-0

[Event "Live Chess"]
[Site "Chess.com"]
[Date "2023.05.21"]
[Round "-"]
[White "domrobson"]
[Black "NateSolon"]
[Result "1/2-1/2"]
[WhiteElo "1749"]
[BlackElo "2662"]
[TimeControl "300"]
[EndTime "18:16:12 PDT"]
[Termination "Game drawn by agreement"]

1. d4 {[%clk 0:04:58.2]} 1... Nf6 {[%clk 0:04:58.3]} 2. c4 {[%clk 0:04:57.1]}
2... c5 {[%clk 0:04:57]} 3. d5 {[%clk 0:04:55.9]} 3... b5 {[%clk 0:04:56.4]} 4.
Qc2 {[%clk 0:04:52.8]} 4... bxc4 {[%clk 0:04:52.4]} 5. e4 {[%clk 0:04:51.1]}
5... e6 {[%clk 0:04:51.7]} 6. Nc3 {[%clk 0:04:49]} 6... exd5 {[%clk 0:04:49.4]}
7. exd5 {[%clk 0:04:48]} 7... d6 {[%clk 0:04:48.4]} 8. Nf3 {[%clk 0:04:46.8]}
8... Be7 {[%clk 0:04:46.6]} 9. Bxc4 {[%clk 0:04:44.8]} 9... O-O {[%clk
0:04:45.6]} 10. O-O {[%clk 0:04:43.8]} 10... Nbd7 {[%clk 0:04:44.3]} 11. Bf4
{[%clk 0:04:42]} 11... Nb6 {[%clk 0:04:43.3]} 12. b3 {[%clk 0:04:40.7]} 12...
Bg4 {[%clk 0:04:40.6]} 13. Qd3 {[%clk 0:04:36.9]} 13... Re8 {[%clk 0:04:34.4]}
14. Rfe1 {[%clk 0:04:35.5]} 14... Bh5 {[%clk 0:04:29.8]} 15. Re3 {[%clk
0:04:18.9]} 15... Bg6 {[%clk 0:04:22.9]} 16. Qe2 {[%clk 0:04:17.4]} 16... Nxc4
{[%clk 0:04:19.6]} 17. bxc4 {[%clk 0:04:15.4]} 17... Bf8 {[%clk 0:04:15.5]} 18.
Rxe8 {[%clk 0:04:11.2]} 18... Qxe8 {[%clk 0:04:15.4]} 19. Qxe8 {[%clk
0:04:02.9]} 19... Rxe8 {[%clk 0:04:15.3]} 20. Nb5 {[%clk 0:04:02.2]} 20... Bd3
{[%clk 0:04:07]} 21. Nxd6 {[%clk 0:03:57.6]} 21... Bxd6 {[%clk 0:04:03.1]} 22.
Bxd6 {[%clk 0:03:56.5]} 22... Bxc4 {[%clk 0:04:02.2]} 23. Bxc5 {[%clk
0:03:55.2]} 23... Bxd5 {[%clk 0:04:00.4]} 24. Bxa7 {[%clk 0:03:54.1]} 24... Ra8
{[%clk 0:03:55]} 25. Bd4 {[%clk 0:03:33.6]} 25... Ne4 {[%clk 0:03:54]} 26. a4
{[%clk 0:03:28.3]} 26... f6 {[%clk 0:03:52.5]} 27. a5 {[%clk 0:03:26.8]} 27...
Ra6 {[%clk 0:03:51.2]} 28. Bb6 {[%clk 0:03:25.1]} 28... Nd6 {[%clk 0:03:47.4]}
29. Rd1 {[%clk 0:03:22]} 29... Bxf3 {[%clk 0:03:46]} 30. Rxd6 {[%clk 0:03:19]}
30... Be2 {[%clk 0:03:45.5]} 31. Rd2 {[%clk 0:03:03.9]} 31... Bc4 {[%clk
0:03:42.8]} 32. Rd8+ {[%clk 0:03:02.5]} 32... Kf7 {[%clk 0:03:41.3]} 33. f4
{[%clk 0:02:56.3]} 33... Ke6 {[%clk 0:03:38.5]} 34. Kf2 {[%clk 0:02:53.3]} 34...
Bd5 {[%clk 0:03:37.5]} 35. g3 {[%clk 0:02:51.1]} 35... Ra8 {[%clk 0:03:33.7]}
36. Rxa8 {[%clk 0:02:45.9]} 36... Bxa8 {[%clk 0:03:33.6]} 37. Ke3 {[%clk
0:02:41.9]} 37... Kd5 {[%clk 0:03:29.9]} 38. g4 {[%clk 0:02:37.6]} 38... g6
{[%clk 0:03:25.9]} 39. h4 {[%clk 0:02:33.7]} 39... f5 {[%clk 0:03:23.9]} 40.
gxf5 {[%clk 0:02:29.8]} 40... gxf5 {[%clk 0:03:23.8]} 1/2-1/2

[Event "Live Chess"]
[Site "Chess.com"]
[Date "2023.05.21"]
[Round "-"]
[White "Long1968"]
[Black "Missedidea"]
[Result "0-1"]
[WhiteElo "1059"]
[BlackElo "1839"]
[TimeControl "300"]
[EndTime "18:16:28 PDT"]
[Termination "Missedidea won on time"]

1. e4 {[%clk 0:04:56.4]} 1... c5 {[%clk 0:04:58.2]} 2. c3 {[%clk 0:04:54.1]}
2... Nf6 {[%clk 0:04:56]} 3. Bd3 {[%clk 0:04:47.2]} 3... d6 {[%clk 0:04:53.6]}
4. Bc2 {[%clk 0:04:44]} 4... Nc6 {[%clk 0:04:50.8]} 5. d3 {[%clk 0:04:41.4]}
5... g6 {[%clk 0:04:48.7]} 6. Nd2 {[%clk 0:04:36.4]} 6... Bg7 {[%clk 0:04:47]}
7. Ndf3 {[%clk 0:04:33.3]} 7... O-O {[%clk 0:04:45.3]} 8. Ne2 {[%clk 0:04:30.4]}
8... e5 {[%clk 0:04:43.5]} 9. Bg5 {[%clk 0:04:27.3]} 9... h6 {[%clk 0:04:41.2]}
10. Bh4 {[%clk 0:04:24.4]} 10... g5 {[%clk 0:04:38.8]} 11. Bg3 {[%clk
0:04:21.6]} 11... Nh5 {[%clk 0:04:37.5]} 12. O-O {[%clk 0:04:18.4]} 12... Nf4
{[%clk 0:04:35.6]} 13. Bxf4 {[%clk 0:04:06]} 13... exf4 {[%clk 0:04:30.8]} 14.
g3 {[%clk 0:04:00.2]} 14... g4 {[%clk 0:04:25.2]} 15. Nh4 {[%clk 0:03:50.5]}
15... Bf6 {[%clk 0:04:15.9]} 16. Nf5 {[%clk 0:03:43.3]} 16... Bxf5 {[%clk
0:04:13.7]} 17. exf5 {[%clk 0:03:39.7]} 17... f3 {[%clk 0:04:08.6]} 18. Nf4
{[%clk 0:03:33.1]} 18... Be5 {[%clk 0:04:03]} 19. Qd2 {[%clk 0:03:19.6]} 19...
Qg5 {[%clk 0:04:01.2]} 20. d4 {[%clk 0:03:07.9]} 20... cxd4 {[%clk 0:03:59.1]}
21. Qd3 {[%clk 0:02:32.1]} 21... Bxf4 {[%clk 0:03:20.2]} 22. gxf4 {[%clk
0:02:16.4]} 22... Qf6 {[%clk 0:03:06.1]} 23. Rad1 {[%clk 0:01:42.7]} 23... h5
{[%clk 0:03:02.7]} 24. cxd4 {[%clk 0:01:36.2]} 24... h4 {[%clk 0:02:57.5]} 25.
h3 {[%clk 0:01:24.8]} 25... Kh7 {[%clk 0:02:42.8]} 26. hxg4 {[%clk 0:01:16.3]}
26... Rg8 {[%clk 0:02:41.6]} 27. Qxf3 {[%clk 0:01:12.1]} 27... Nxd4 {[%clk
0:02:39.2]} 28. Qd3 {[%clk 0:00:43.9]} 28... Rxg4+ {[%clk 0:02:36.4]} 29. Kh2
{[%clk 0:00:33.8]} 29... Nc6 {[%clk 0:02:18.5]} 30. Qxd6 {[%clk 0:00:23.6]}
30... Qxb2 {[%clk 0:02:04.7]} 31. f6+ {[%clk 0:00:17.4]} 31... Qxc2 {[%clk
0:02:01.6]} 32. Rc1 {[%clk 0:00:05.5]} 32... Qe4 {[%clk 0:01:57.4]} 0-1

[Event "Live Chess"]
[Site "Chess.com"]
[Date "2023.05.21"]
[Round "-"]
[White "garyjc"]
[Black "xx_blindpuffin_xx"]
[Result "0-1"]
[WhiteElo "1035"]
[BlackElo "2205"]
[TimeControl "300"]
[EndTime "18:17:07 PDT"]
[Termination "xx_blindpuffin_xx won by resignation"]

1. e4 {[%clk 0:04:55.2]} 1... c6 {[%clk 0:04:53.2]} 2. d4 {[%clk 0:04:53.3]}
2... d5 {[%clk 0:04:52.3]} 3. Nc3 {[%clk 0:04:51.4]} 3... dxe4 {[%clk
0:04:50.5]} 4. Nxe4 {[%clk 0:04:50]} 4... Nf6 {[%clk 0:04:50.4]} 5. Nxf6+ {[%clk
0:04:48.2]} 5... exf6 {[%clk 0:04:50.3]} 6. Nf3 {[%clk 0:04:43.9]} 6... Be7
{[%clk 0:04:48.3]} 7. Bd3 {[%clk 0:04:31.3]} 7... O-O {[%clk 0:04:40.6]} 8. Be3
{[%clk 0:04:17.7]} 8... f5 {[%clk 0:04:37.3]} 9. c3 {[%clk 0:03:44.2]} 9... Re8
{[%clk 0:04:35.5]} 10. O-O {[%clk 0:03:36.2]} 10... Bd6 {[%clk 0:04:31.2]} 11.
Qd2 {[%clk 0:03:28.3]} 11... Qc7 {[%clk 0:04:17.5]} 12. Bc4 {[%clk 0:03:05.2]}
12... f4 {[%clk 0:04:01.1]} 13. Ng5 {[%clk 0:02:39.9]} 13... Be6 {[%clk
0:03:48.4]} 14. Qd3 {[%clk 0:01:57.7]} 14... Bxc4 {[%clk 0:03:25.1]} 15. Qxh7+
{[%clk 0:01:53]} 15... Kf8 {[%clk 0:03:16.1]} 16. Qh8+ {[%clk 0:01:35.9]} 16...
Ke7 {[%clk 0:03:13.9]} 17. Qxg7 {[%clk 0:01:17.3]} 17... fxe3 {[%clk 0:03:08.9]}
18. Qxf7+ {[%clk 0:01:12.2]} 18... Bxf7 {[%clk 0:03:07.1]} 0-1

[Event "Live Chess"]
[Site "Chess.com"]
[Date "2023.05.21"]
[Round "-"]
[White "Conradical12"]
[Black "Duke_of_Bebington"]
[Result "1-0"]
[WhiteElo "1651"]
[BlackElo "1581"]
[TimeControl "300"]
[EndTime "18:17:10 PDT"]
[Termination "Conradical12 won by resignation"]

1. e4 {[%clk 0:04:58.7]} 1... e5 {[%clk 0:04:58.3]} 2. Nf3 {[%clk 0:04:57.5]}
2... Nf6 {[%clk 0:04:54.3]} 3. Bc4 {[%clk 0:04:55.5]} 3... Nc6 {[%clk
0:04:52.4]} 4. Ng5 {[%clk 0:04:53]} 4... d5 {[%clk 0:04:49.3]} 5. exd5 {[%clk
0:04:51.2]} 5... Nd4 {[%clk 0:04:48.2]} 6. O-O {[%clk 0:04:44.8]} 6... b5 {[%clk
0:04:45.1]} 7. Bb3 {[%clk 0:04:41.5]} 7... Nxb3 {[%clk 0:04:43.7]} 8. axb3
{[%clk 0:04:39.9]} 8... Nxd5 {[%clk 0:04:42.7]} 9. d3 {[%clk 0:04:37.2]} 9... f6
{[%clk 0:04:37.2]} 10. c4 {[%clk 0:04:24.7]} 10... Nb4 {[%clk 0:04:29]} 11. Qf3
{[%clk 0:04:11.9]} 11... fxg5 {[%clk 0:04:20.5]} 12. Qxa8 {[%clk 0:04:09.3]}
12... Nxd3 {[%clk 0:04:13.3]} 13. Qe4 {[%clk 0:03:57.1]} 13... bxc4 {[%clk
0:04:08.8]} 14. bxc4 {[%clk 0:03:54]} 14... Bd6 {[%clk 0:04:01.9]} 15. Qxd3
{[%clk 0:03:51.4]} 15... O-O {[%clk 0:03:57]} 16. Rd1 {[%clk 0:03:43.8]} 16...
Ba6 {[%clk 0:03:47.3]} 17. Qd5+ {[%clk 0:03:39.4]} 17... Kh8 {[%clk 0:03:45.7]}
18. Rxa6 {[%clk 0:03:36.2]} 1-0